[Event "*** SCC Grand Prix: Titled Tuesday Blitz"]
[Site "Chess.com"]
[Date "2020.10.13"]
[Round "4"]
[White "pfalcon1949"]
[Black "Shivagami"]
[Result "0-1"]
[WhiteElo "1937"]
[BlackElo "2236"]
[TimeControl "180+1"]
[EndTime "10:36:21 PDT"]
[Termination "Shivagami won by checkmate"]

1. c4 {[%clk 0:03:00.9]} 1... e5 {[%clk 0:02:58.6]} 2. g3 {[%clk 0:03:00.8]}
2... c6 {[%clk 0:02:57.7]} 3. Nf3 {[%clk 0:02:57.8]} 3... e4 {[%clk 0:02:55.9]}
4. Nd4 {[%clk 0:02:57.7]} 4... d5 {[%clk 0:02:55.4]} 5. cxd5 {[%clk 0:02:56.9]}
5... cxd5 {[%clk 0:02:56.3]} 6. d3 {[%clk 0:02:56.5]} 6... Nf6 {[%clk
0:02:43.2]} 7. Nc3 {[%clk 0:02:47.7]} 7... Bc5 {[%clk 0:02:40.4]} 8. dxe4 {[%clk
0:02:46.1]} 8... dxe4 {[%clk 0:02:37.5]} 9. Be3 {[%clk 0:02:46.2]} 9... O-O
{[%clk 0:02:28.4]} 10. Bg2 {[%clk 0:02:44.4]} 10... Re8 {[%clk 0:02:19.9]} 11.
Qc2 {[%clk 0:02:42.9]} 11... Bxd4 {[%clk 0:02:17.4]} 12. Rd1 {[%clk 0:02:39.7]}
12... Bxc3+ {[%clk 0:02:14.2]} 13. Qxc3 {[%clk 0:02:32.9]} 13... Qe7 {[%clk
0:02:09.3]} 14. O-O {[%clk 0:02:32.9]} 14... Nc6 {[%clk 0:02:08.4]} 15. Bc5
{[%clk 0:02:30.6]} 15... Qe5 {[%clk 0:02:05.2]} 16. Qa3 {[%clk 0:02:24.7]} 16...
Bg4 {[%clk 0:01:57]} 17. Bd6 {[%clk 0:02:24.3]} 17... Qb5 {[%clk 0:01:54.2]} 18.
f3 {[%clk 0:02:19.1]} 18... exf3 {[%clk 0:01:53.6]} 19. exf3 {[%clk 0:02:19.2]}
19... Bf5 {[%clk 0:01:49.5]} 20. Kh1 {[%clk 0:02:19.1]} 20... Re2 {[%clk
0:01:45.7]} 21. Rfe1 {[%clk 0:02:11]} 21... Rae8 {[%clk 0:01:43.1]} 22. Rxe2
{[%clk 0:02:09.9]} 22... Qxe2 {[%clk 0:01:41.2]} 23. Rg1 {[%clk 0:02:09.6]}
23... Nd4 {[%clk 0:01:37.7]} 24. Bf4 {[%clk 0:02:07]} 24... Bd3 {[%clk 0:01:36]}
25. Qxa7 {[%clk 0:02:04.3]} 25... Nxf3 {[%clk 0:01:33.2]} 26. Rc1 {[%clk
0:01:49]} 26... Ng4 {[%clk 0:01:27.1]} 27. Bxf3 {[%clk 0:01:37.9]} 27... Qxh2#
{[%clk 0:01:22.9]} 0-1

[Event "*** SCC Grand Prix: Titled Tuesday Blitz"]
[Site "Chess.com"]
[Date "2020.10.13"]
[Round "4"]
[White "Inga83"]
[Black "mfwagnerpeixoto"]
[Result "0-1"]
[WhiteElo "2392"]
[BlackElo "2251"]
[TimeControl "180+1"]
[EndTime "10:36:50 PDT"]
[Termination "mfwagnerpeixoto won by resignation"]

1. d4 {[%clk 0:02:56.4]} 1... Nf6 {[%clk 0:02:58.1]} 2. c4 {[%clk 0:02:54.6]}
2... g6 {[%clk 0:02:58.4]} 3. f3 {[%clk 0:02:50.9]} 3... Bg7 {[%clk 0:02:56.1]}
4. e4 {[%clk 0:02:50]} 4... d6 {[%clk 0:02:56.1]} 5. Nc3 {[%clk 0:02:45]} 5...
O-O {[%clk 0:02:56.2]} 6. Be3 {[%clk 0:02:43.6]} 6... e5 {[%clk 0:02:54.3]} 7.
d5 {[%clk 0:02:41.3]} 7... Nh5 {[%clk 0:02:49.7]} 8. Qd2 {[%clk 0:02:38]} 8...
Qh4+ {[%clk 0:02:45.3]} 9. Bf2 {[%clk 0:02:34.6]} 9... Qf4 {[%clk 0:02:42]} 10.
Qxf4 {[%clk 0:02:33.6]} 10... Nxf4 {[%clk 0:02:41.5]} 11. g3 {[%clk 0:02:25.4]}
11... Nh5 {[%clk 0:02:40.8]} 12. Nb5 {[%clk 0:02:18.5]} 12... Na6 {[%clk
0:02:38.8]} 13. Ne2 {[%clk 0:02:08.1]} 13... Nb4 {[%clk 0:02:25.2]} 14. Kd2
{[%clk 0:02:04]} 14... Bd7 {[%clk 0:02:20]} 15. a3 {[%clk 0:02:00]} 15... Na6
{[%clk 0:02:18.5]} 16. Be3 {[%clk 0:01:53.5]} 16... f5 {[%clk 0:02:07.5]} 17.
Rb1 {[%clk 0:01:43.1]} 17... fxe4 {[%clk 0:02:06.9]} 18. fxe4 {[%clk 0:01:41.2]}
18... Nf6 {[%clk 0:02:06.9]} 19. Bg2 {[%clk 0:01:40]} 19... Ng4 {[%clk
0:01:53.2]} 20. Bh3 {[%clk 0:01:39.7]} 20... Nxe3 {[%clk 0:01:49.1]} 21. Bxd7
{[%clk 0:01:39.3]} 21... Nxc4+ {[%clk 0:01:49.1]} 22. Kd3 {[%clk 0:01:37.3]}
22... Nc5+ {[%clk 0:01:36.6]} 23. Kxc4 {[%clk 0:01:36.7]} 23... Nxd7 {[%clk
0:01:37.5]} 24. Nec3 {[%clk 0:01:28.8]} 24... a6 {[%clk 0:01:33.7]} 25. Nxc7
{[%clk 0:01:27.6]} 25... Rac8 {[%clk 0:01:33.3]} 26. Kd3 {[%clk 0:01:25.6]}
26... Rxc7 {[%clk 0:01:32]} 27. Ke2 {[%clk 0:01:25.7]} 27... Nc5 {[%clk
0:01:21.9]} 28. Rbc1 {[%clk 0:01:24]} 28... Nb3 {[%clk 0:01:20.7]} 29. Rb1
{[%clk 0:01:19.8]} 29... Nd4+ {[%clk 0:01:20.3]} 0-1

[Event "*** SCC Grand Prix: Titled Tuesday Blitz"]
[Site "Chess.com"]
[Date "2020.10.13"]
[Round "4"]
[White "MalyDominator"]
[Black "GAusal"]
[Result "1-0"]
[WhiteElo "2372"]
[BlackElo "2022"]
[TimeControl "180+1"]
[EndTime "10:36:51 PDT"]
[Termination "MalyDominator won by resignation"]

1. e4 {[%clk 0:03:00.9]} 1... c5 {[%clk 0:02:57.8]} 2. Nf3 {[%clk 0:03:00.6]}
2... d6 {[%clk 0:02:57.8]} 3. d4 {[%clk 0:03:00.9]} 3... cxd4 {[%clk 0:02:57.9]}
4. Nxd4 {[%clk 0:03:01.8]} 4... Nc6 {[%clk 0:02:57.9]} 5. Nc3 {[%clk 0:03:02]}
5... g6 {[%clk 0:02:57.2]} 6. Be3 {[%clk 0:02:56.7]} 6... Bg7 {[%clk 0:02:57]}
7. Qd2 {[%clk 0:02:54.5]} 7... Nf6 {[%clk 0:02:56.2]} 8. f3 {[%clk 0:02:54.6]}
8... O-O {[%clk 0:02:55.5]} 9. g4 {[%clk 0:02:54.6]} 9... h5 {[%clk 0:02:55]}
10. gxh5 {[%clk 0:02:40.1]} 10... Nxh5 {[%clk 0:02:49.6]} 11. O-O-O {[%clk
0:02:37.4]} 11... Nxd4 {[%clk 0:01:56.3]} 12. Bxd4 {[%clk 0:02:36.7]} 12... Bxd4
{[%clk 0:01:55.1]} 13. Qxd4 {[%clk 0:02:37.6]} 13... Qb6 {[%clk 0:01:54.8]} 14.
Qd2 {[%clk 0:02:31]} 14... Be6 {[%clk 0:01:49.9]} 15. f4 {[%clk 0:02:26.2]}
15... Rfc8 {[%clk 0:01:47.5]} 16. f5 {[%clk 0:02:24.1]} 16... Bd7 {[%clk
0:01:29.4]} 17. fxg6 {[%clk 0:02:10.9]} 17... fxg6 {[%clk 0:01:26.6]} 18. Nd5
{[%clk 0:02:11]} 18... Qd8 {[%clk 0:01:25.4]} 19. Qg5 {[%clk 0:02:07]} 19... Kf7
{[%clk 0:01:14.2]} 20. Rg1 {[%clk 0:01:46.8]} 1-0

[Event "*** SCC Grand Prix: Titled Tuesday Blitz"]
[Site "Chess.com"]
[Date "2020.10.13"]
[Round "4"]
[White "Oglob71"]
[Black "MVM2008"]
[Result "0-1"]
[WhiteElo "2487"]
[BlackElo "2194"]
[TimeControl "180+1"]
[EndTime "10:37:01 PDT"]
[Termination "MVM2008 won by resignation"]

1. d4 {[%clk 0:02:59.1]} 1... Nf6 {[%clk 0:02:59.5]} 2. Nf3 {[%clk 0:02:58.1]}
2... d5 {[%clk 0:02:55.6]} 3. c4 {[%clk 0:02:56.9]} 3... e6 {[%clk 0:02:49.9]}
4. Qc2 {[%clk 0:02:56.2]} 4... b6 {[%clk 0:02:45.9]} 5. Bg5 {[%clk 0:02:54.8]}
5... Bb7 {[%clk 0:02:43]} 6. cxd5 {[%clk 0:02:54]} 6... exd5 {[%clk 0:02:35.7]}
7. Nc3 {[%clk 0:02:54.3]} 7... c6 {[%clk 0:02:23.4]} 8. e3 {[%clk 0:02:54.3]}
8... Bd6 {[%clk 0:02:19.7]} 9. Bd3 {[%clk 0:02:54.6]} 9... Nbd7 {[%clk
0:02:15.9]} 10. O-O {[%clk 0:02:53.9]} 10... h6 {[%clk 0:01:55.4]} 11. Bh4
{[%clk 0:02:49.9]} 11... O-O {[%clk 0:01:51.3]} 12. e4 {[%clk 0:02:47.6]} 12...
dxe4 {[%clk 0:01:49.7]} 13. Nxe4 {[%clk 0:02:48]} 13... Be7 {[%clk 0:01:49.4]}
14. Bg3 {[%clk 0:02:45.9]} 14... Nxe4 {[%clk 0:01:47.3]} 15. Bxe4 {[%clk
0:02:46.2]} 15... Nf6 {[%clk 0:01:42]} 16. Rfe1 {[%clk 0:02:37.7]} 16... Nxe4
{[%clk 0:01:37.2]} 17. Qxe4 {[%clk 0:02:37]} 17... Bf6 {[%clk 0:01:35.5]} 18.
Be5 {[%clk 0:02:36.3]} 18... Bxe5 {[%clk 0:01:20.7]} 19. dxe5 {[%clk 0:02:34]}
19... Qe7 {[%clk 0:01:15.7]} 20. e6 {[%clk 0:02:31.8]} 20... c5 {[%clk
0:01:02.8]} 21. exf7+ {[%clk 0:02:31]} 21... Qxf7 {[%clk 0:01:01.1]} 22. Qe6
{[%clk 0:02:30]} 22... Bxf3 {[%clk 0:00:57.2]} 23. gxf3 {[%clk 0:02:29.8]} 23...
Qxe6 {[%clk 0:00:57]} 24. Rxe6 {[%clk 0:02:30]} 24... Rxf3 {[%clk 0:00:56.7]}
25. Rd1 {[%clk 0:02:30.5]} 25... Raf8 {[%clk 0:00:48]} 26. Rd2 {[%clk
0:02:30.9]} 26... R3f7 {[%clk 0:00:46.9]} 27. Kg2 {[%clk 0:02:29.5]} 27... Rc7
{[%clk 0:00:43.1]} 28. h4 {[%clk 0:02:23.8]} 28... Rfc8 {[%clk 0:00:38.2]} 29.
Red6 {[%clk 0:02:22.3]} 29... c4 {[%clk 0:00:30.6]} 30. Rd8+ {[%clk 0:02:22.1]}
30... Rxd8 {[%clk 0:00:30.1]} 31. Rxd8+ {[%clk 0:02:21]} 31... Kh7 {[%clk
0:00:29.7]} 32. Kg3 {[%clk 0:02:18.3]} 32... c3 {[%clk 0:00:27.4]} 33. bxc3
{[%clk 0:02:18.3]} 33... Rxc3+ {[%clk 0:00:27.4]} 34. Kg4 {[%clk 0:02:18.5]}
34... Ra3 {[%clk 0:00:26.7]} 35. Rd3 {[%clk 0:02:18.2]} 35... Rxd3 {[%clk
0:00:26.2]} 0-1

[Event "*** SCC Grand Prix: Titled Tuesday Blitz"]
[Site "Chess.com"]
[Date "2020.10.13"]
[Round "4"]
[White "PowerThinking2650"]
[Black "Khnykin_Nikolay"]
[Result "1-0"]
[WhiteElo "2375"]
[BlackElo "2052"]
[TimeControl "180+1"]
[EndTime "10:37:03 PDT"]
[Termination "PowerThinking2650 won by resignation"]

1. e4 {[%clk 0:03:00.9]} 1... e6 {[%clk 0:02:59.5]} 2. d4 {[%clk 0:03:00.2]}
2... d5 {[%clk 0:02:59.9]} 3. Nd2 {[%clk 0:02:59.7]} 3... dxe4 {[%clk
0:02:57.3]} 4. Nxe4 {[%clk 0:03:00.6]} 4... Nf6 {[%clk 0:02:57.8]} 5. Nxf6+
{[%clk 0:02:58.8]} 5... Qxf6 {[%clk 0:02:58.7]} 6. Nf3 {[%clk 0:02:58.3]} 6...
h6 {[%clk 0:02:56]} 7. Bd3 {[%clk 0:02:57.5]} 7... Bd6 {[%clk 0:02:54.3]} 8. O-O
{[%clk 0:02:53.4]} 8... O-O {[%clk 0:02:53.6]} 9. Re1 {[%clk 0:02:52.7]} 9...
Nc6 {[%clk 0:02:53]} 10. c3 {[%clk 0:02:52]} 10... b6 {[%clk 0:02:53.2]} 11. Be4
{[%clk 0:02:31.7]} 11... Bb7 {[%clk 0:02:52.5]} 12. Ne5 {[%clk 0:02:31.3]} 12...
Nxe5 {[%clk 0:02:35.2]} 13. dxe5 {[%clk 0:02:25.5]} 13... Bxe5 {[%clk
0:02:25.8]} 14. Bxb7 {[%clk 0:02:21.7]} 14... Rab8 {[%clk 0:02:25.9]} 15. Qf3
{[%clk 0:02:17.3]} 15... Qh4 {[%clk 0:02:18.3]} 16. g3 {[%clk 0:02:16.9]} 16...
Qh3 {[%clk 0:02:17.3]} 17. Rxe5 {[%clk 0:02:14.9]} 17... Rfd8 {[%clk 0:02:15]}
18. Be3 {[%clk 0:02:14]} 18... Rd3 {[%clk 0:01:59.7]} 19. Rh5 {[%clk 0:02:10.3]}
19... Qxh5 {[%clk 0:01:51.1]} 20. Qxh5 {[%clk 0:02:10.6]} 20... Rxb7 {[%clk
0:01:51]} 21. Rd1 {[%clk 0:02:08.8]} 21... Rxd1+ {[%clk 0:01:41.7]} 22. Qxd1
{[%clk 0:02:09.7]} 22... Rb8 {[%clk 0:01:42.2]} 23. Bf4 {[%clk 0:02:09.5]} 23...
Re8 {[%clk 0:01:37.2]} 24. Bxc7 {[%clk 0:02:08.5]} 24... g5 {[%clk 0:01:34.2]}
25. Qd7 {[%clk 0:02:08.1]} 25... Rf8 {[%clk 0:01:29.7]} 26. Bd6 {[%clk
0:02:08.3]} 26... Ra8 {[%clk 0:01:28.5]} 27. Be7 {[%clk 0:02:08.4]} 27... a5
{[%clk 0:01:10.5]} 28. a4 {[%clk 0:02:07.5]} 28... Rb8 {[%clk 0:00:51.3]} 29.
Bd6 {[%clk 0:02:03.8]} 29... Ra8 {[%clk 0:00:50.1]} 30. Be5 {[%clk 0:02:03.3]}
30... Rf8 {[%clk 0:00:46.9]} 31. Qe7 {[%clk 0:02:03.2]} 31... Rc8 {[%clk
0:00:42]} 32. Qf6 {[%clk 0:02:03.2]} 32... Kf8 {[%clk 0:00:41.8]} 33. Qh8+
{[%clk 0:02:03]} 33... Ke7 {[%clk 0:00:42.2]} 34. Qxc8 {[%clk 0:02:03.9]} 34...
f6 {[%clk 0:00:41.5]} 35. Qc7+ {[%clk 0:02:04.1]} 1-0

[Event "*** SCC Grand Prix: Titled Tuesday Blitz"]
[Site "Chess.com"]
[Date "2020.10.13"]
[Round "4"]
[White "TheMagnet"]
[Black "Akmal_Fayzullaev"]
[Result "0-1"]
[WhiteElo "2594"]
[BlackElo "2416"]
[TimeControl "180+1"]
[EndTime "10:37:04 PDT"]
[Termination "Akmal_Fayzullaev won by resignation"]

1. d4 {[%clk 0:02:55.6]} 1... Nf6 {[%clk 0:02:59.6]} 2. c4 {[%clk 0:02:55.1]}
2... c5 {[%clk 0:03:00.2]} 3. d5 {[%clk 0:02:55.1]} 3... g6 {[%clk 0:03:00.7]}
4. Nc3 {[%clk 0:02:55.3]} 4... Bg7 {[%clk 0:03:01.3]} 5. e4 {[%clk 0:02:55.7]}
5... d6 {[%clk 0:03:02.2]} 6. f4 {[%clk 0:02:56.3]} 6... O-O {[%clk 0:03:02.8]}
7. Nf3 {[%clk 0:02:56.9]} 7... e6 {[%clk 0:03:03.3]} 8. Be2 {[%clk 0:02:57.5]}
8... exd5 {[%clk 0:03:03.9]} 9. cxd5 {[%clk 0:02:58.4]} 9... Bg4 {[%clk
0:03:03.5]} 10. O-O {[%clk 0:02:58]} 10... Re8 {[%clk 0:03:02.4]} 11. h3 {[%clk
0:02:58.2]} 11... Bxf3 {[%clk 0:03:02.6]} 12. Bxf3 {[%clk 0:02:59.1]} 12... Nbd7
{[%clk 0:02:54.9]} 13. Re1 {[%clk 0:02:56.8]} 13... a6 {[%clk 0:02:51.4]} 14.
Be3 {[%clk 0:02:55.6]} 14... b5 {[%clk 0:02:49.1]} 15. Bf2 {[%clk 0:02:55.3]}
15... Rc8 {[%clk 0:02:13.6]} 16. g4 {[%clk 0:02:50.2]} 16... Nb6 {[%clk
0:02:06.4]} 17. g5 {[%clk 0:02:45.5]} 17... Nfd7 {[%clk 0:02:05.9]} 18. a3
{[%clk 0:02:39.7]} 18... Nc4 {[%clk 0:02:04.4]} 19. Qc2 {[%clk 0:02:26.4]} 19...
Ndb6 {[%clk 0:01:57.3]} 20. Rab1 {[%clk 0:02:13]} 20... b4 {[%clk 0:01:54]} 21.
Na4 {[%clk 0:02:10.5]} 21... Nxa4 {[%clk 0:01:45.1]} 22. Qxa4 {[%clk 0:02:11.4]}
22... Nxb2 {[%clk 0:01:16.1]} 23. Qxa6 {[%clk 0:01:49.7]} 23... Ra8 {[%clk
0:01:11.9]} 24. Qe2 {[%clk 0:01:38]} 24... bxa3 {[%clk 0:01:12.1]} 25. Ra1
{[%clk 0:01:37.4]} 25... c4 {[%clk 0:01:06.9]} 26. Rec1 {[%clk 0:01:29.6]} 26...
Nd3 {[%clk 0:01:05.2]} 27. Be3 {[%clk 0:01:20.4]} 27... Nxc1 {[%clk 0:01:03.1]}
28. Rxc1 {[%clk 0:01:21]} 28... a2 {[%clk 0:01:03.5]} 0-1

[Event "*** SCC Grand Prix: Titled Tuesday Blitz"]
[Site "Chess.com"]
[Date "2020.10.13"]
[Round "4"]
[White "Shield12"]
[Black "IMDT02"]
[Result "1-0"]
[WhiteElo "2830"]
[BlackElo "2570"]
[TimeControl "180+1"]
[EndTime "10:37:08 PDT"]
[Termination "Shield12 won by resignation"]

1. e4 {[%clk 0:03:00.9]} 1... c5 {[%clk 0:02:56.6]} 2. Nf3 {[%clk 0:03:00.8]}
2... Nc6 {[%clk 0:02:56.9]} 3. d4 {[%clk 0:03:01.1]} 3... cxd4 {[%clk
0:02:57.8]} 4. Nxd4 {[%clk 0:03:02]} 4... Nf6 {[%clk 0:02:58.7]} 5. Nc3 {[%clk
0:03:02.1]} 5... d6 {[%clk 0:02:59.2]} 6. Bg5 {[%clk 0:03:00.8]} 6... e6 {[%clk
0:02:58.9]} 7. Qd2 {[%clk 0:03:00.9]} 7... a6 {[%clk 0:02:59.3]} 8. O-O-O {[%clk
0:02:59.2]} 8... Bd7 {[%clk 0:02:59.5]} 9. f4 {[%clk 0:02:59.3]} 9... h6 {[%clk
0:02:59.5]} 10. Bh4 {[%clk 0:02:59.1]} 10... b5 {[%clk 0:02:58.4]} 11. Bxf6
{[%clk 0:02:58.4]} 11... gxf6 {[%clk 0:02:59.3]} 12. Kb1 {[%clk 0:02:55.9]}
12... Qb6 {[%clk 0:02:53.8]} 13. Nxc6 {[%clk 0:02:55.2]} 13... Bxc6 {[%clk
0:02:54.7]} 14. f5 {[%clk 0:02:55.6]} 14... h5 {[%clk 0:02:55]} 15. fxe6 {[%clk
0:02:53]} 15... fxe6 {[%clk 0:02:55.9]} 16. Bd3 {[%clk 0:02:50.2]} 16... Bh6
{[%clk 0:02:47.5]} 17. Qe2 {[%clk 0:02:47.7]} 17... Bf4 {[%clk 0:02:26]} 18. Nd5
{[%clk 0:02:44.6]} 18... Bxd5 {[%clk 0:02:12.1]} 19. exd5 {[%clk 0:02:45.5]}
19... e5 {[%clk 0:02:09.1]} 20. g3 {[%clk 0:02:41.9]} 20... Be3 {[%clk
0:02:04.3]} 21. Rhf1 {[%clk 0:02:29]} 21... O-O {[%clk 0:01:58.7]} 22. Qxh5
{[%clk 0:02:26.6]} 22... Qc7 {[%clk 0:01:58.2]} 23. Qg4+ {[%clk 0:02:19.1]}
23... Qg7 {[%clk 0:01:58.6]} 24. Qe6+ {[%clk 0:02:18.5]} 24... Qf7 {[%clk
0:01:56]} 25. Rxf6 {[%clk 0:02:09.9]} 25... Qxe6 {[%clk 0:01:54.2]} 26. Rxe6
{[%clk 0:02:10.8]} 26... Bc5 {[%clk 0:01:49.6]} 27. a3 {[%clk 0:02:05.5]} 27...
a5 {[%clk 0:01:33.5]} 28. Bxb5 {[%clk 0:02:04.5]} 28... Rab8 {[%clk 0:01:34]}
29. a4 {[%clk 0:02:03.5]} 29... Rf2 {[%clk 0:01:34.9]} 30. h4 {[%clk 0:01:59.4]}
30... Rbf8 {[%clk 0:01:34.2]} 31. h5 {[%clk 0:01:51.4]} 31... Rg2 {[%clk
0:01:30.9]} 32. Rg6+ {[%clk 0:01:49.5]} 32... Kh8 {[%clk 0:01:28.9]} 33. Bd3
{[%clk 0:01:40.4]} 33... Rg8 {[%clk 0:01:25.2]} 34. Rf1 {[%clk 0:01:24]} 34...
Rxg3 {[%clk 0:01:23.4]} 35. Rh6+ {[%clk 0:01:16.7]} 1-0

[Event "*** SCC Grand Prix: Titled Tuesday Blitz"]
[Site "Chess.com"]
[Date "2020.10.13"]
[Round "4"]
[White "Chamal_Gedgafov"]
[Black "sopo-tereladze"]
[Result "1-0"]
[WhiteElo "2172"]
[BlackElo "2277"]
[TimeControl "180+1"]
[EndTime "10:37:10 PDT"]
[Termination "Chamal_Gedgafov won by resignation"]

1. d4 {[%clk 0:03:00.9]} 1... Nf6 {[%clk 0:02:59.2]} 2. c4 {[%clk 0:03:00.1]}
2... e6 {[%clk 0:02:59.6]} 3. Nc3 {[%clk 0:02:59.8]} 3... Bb4 {[%clk 0:02:59.8]}
4. e3 {[%clk 0:03:00.3]} 4... O-O {[%clk 0:02:58.8]} 5. Ne2 {[%clk 0:03:01.2]}
5... d6 {[%clk 0:02:56.5]} 6. a3 {[%clk 0:03:02.1]} 6... Bxc3+ {[%clk
0:02:56.3]} 7. Nxc3 {[%clk 0:03:02.4]} 7... e5 {[%clk 0:02:57.2]} 8. Be2 {[%clk
0:02:56.1]} 8... Nc6 {[%clk 0:02:56]} 9. O-O {[%clk 0:02:55.3]} 9... Re8 {[%clk
0:02:54.2]} 10. d5 {[%clk 0:02:53.4]} 10... Ne7 {[%clk 0:02:52.6]} 11. Qc2
{[%clk 0:02:53.3]} 11... e4 {[%clk 0:02:30.8]} 12. Nxe4 {[%clk 0:02:41.8]} 12...
Nexd5 {[%clk 0:02:27.7]} 13. Nxf6+ {[%clk 0:02:39.8]} 13... Nxf6 {[%clk
0:02:27.3]} 14. Bf3 {[%clk 0:02:38.1]} 14... Rb8 {[%clk 0:02:19]} 15. b4 {[%clk
0:02:36.7]} 15... Bg4 {[%clk 0:02:17.1]} 16. Bxg4 {[%clk 0:02:34.2]} 16... Nxg4
{[%clk 0:02:18]} 17. Bb2 {[%clk 0:02:31.1]} 17... Qh4 {[%clk 0:02:15]} 18. h3
{[%clk 0:02:30]} 18... Ne5 {[%clk 0:02:14]} 19. Qc3 {[%clk 0:02:23.9]} 19... f6
{[%clk 0:02:08.9]} 20. Rad1 {[%clk 0:02:18.6]} 20... Re7 {[%clk 0:02:02.9]} 21.
c5 {[%clk 0:02:14]} 21... dxc5 {[%clk 0:01:53.9]} 22. Qxc5 {[%clk 0:02:13.3]}
22... Rbe8 {[%clk 0:01:50.3]} 23. Qxa7 {[%clk 0:02:02.7]} 23... b6 {[%clk
0:01:49.5]} 24. Qb7 {[%clk 0:01:54.3]} 24... Nc4 {[%clk 0:01:32.3]} 25. Rd4
{[%clk 0:01:33.9]} 25... Re4 {[%clk 0:01:26]} 26. Qd5+ {[%clk 0:01:32.4]} 26...
Kh8 {[%clk 0:01:22]} 27. Qxc4 {[%clk 0:01:31]} 27... h6 {[%clk 0:01:18.3]} 28.
Rxe4 {[%clk 0:01:28.3]} 28... Rxe4 {[%clk 0:01:19.2]} 29. Qxc7 {[%clk
0:01:26.6]} 29... Rc4 {[%clk 0:01:16.8]} 30. Qd8+ {[%clk 0:01:23.1]} 30... Kh7
{[%clk 0:01:16.3]} 31. Qd3+ {[%clk 0:01:20.8]} 31... Qe4 {[%clk 0:01:11.3]} 32.
Qxe4+ {[%clk 0:01:18.8]} 32... Rxe4 {[%clk 0:01:12.2]} 33. Bd4 {[%clk
0:01:18.7]} 1-0

[Event "*** SCC Grand Prix: Titled Tuesday Blitz"]
[Site "Chess.com"]
[Date "2020.10.13"]
[Round "4"]
[White "Ginger_GM"]
[Black "HrvojeZagreb"]
[Result "1-0"]
[WhiteElo "2596"]
[BlackElo "2164"]
[TimeControl "180+1"]
[EndTime "10:37:21 PDT"]
[Termination "Ginger_GM won by resignation"]

1. d4 {[%clk 0:03:00.9]} 1... e6 {[%clk 0:02:59.4]} 2. Nf3 {[%clk 0:02:59.2]}
2... f5 {[%clk 0:02:59]} 3. e4 {[%clk 0:02:58.3]} 3... fxe4 {[%clk 0:02:58]} 4.
Ng5 {[%clk 0:02:58.2]} 4... Nf6 {[%clk 0:02:57.6]} 5. f3 {[%clk 0:02:58.5]} 5...
d5 {[%clk 0:02:46.5]} 6. fxe4 {[%clk 0:02:56.6]} 6... dxe4 {[%clk 0:02:45]} 7.
Bc4 {[%clk 0:02:56]} 7... c5 {[%clk 0:02:35.3]} 8. Bxe6 {[%clk 0:02:22.6]} 8...
cxd4 {[%clk 0:01:52.1]} 9. Bf7+ {[%clk 0:02:11.1]} 9... Ke7 {[%clk 0:01:45]} 10.
Bb3 {[%clk 0:02:02.4]} 10... Bg4 {[%clk 0:01:22.2]} 11. Qd2 {[%clk 0:02:02.3]}
11... Qb6 {[%clk 0:01:00.8]} 12. Qf4 {[%clk 0:01:29.6]} 12... Qa5+ {[%clk
0:00:36]} 13. Bd2 {[%clk 0:01:26.8]} 13... Qf5 {[%clk 0:00:33.6]} 14. Qc7+
{[%clk 0:01:19.5]} 14... Nbd7 {[%clk 0:00:33.6]} 15. Bb4+ {[%clk 0:01:18.3]} 1-0

[Event "*** SCC Grand Prix: Titled Tuesday Blitz"]
[Site "Chess.com"]
[Date "2020.10.13"]
[Round "4"]
[White "Barmen_EV"]
[Black "Bigfish1995"]
[Result "0-1"]
[WhiteElo "2501"]
[BlackElo "3100"]
[TimeControl "180+1"]
[EndTime "10:37:23 PDT"]
[Termination "Bigfish1995 won on time"]

1. d4 {[%clk 0:02:45.5]} 1... d5 {[%clk 0:02:58.8]} 2. c4 {[%clk 0:02:45.8]}
2... e6 {[%clk 0:02:59.1]} 3. Nc3 {[%clk 0:02:46.2]} 3... h6 {[%clk 0:02:58.3]}
4. Nf3 {[%clk 0:02:42.1]} 4... Nf6 {[%clk 0:02:58.1]} 5. Bf4 {[%clk 0:02:42.7]}
5... Bb4 {[%clk 0:02:58.3]} 6. a3 {[%clk 0:02:31.7]} 6... Bxc3+ {[%clk
0:02:57.3]} 7. bxc3 {[%clk 0:02:32.6]} 7... dxc4 {[%clk 0:02:57.9]} 8. Qa4+
{[%clk 0:02:20.6]} 8... Bd7 {[%clk 0:02:47.4]} 9. Qxc4 {[%clk 0:02:21.5]} 9...
c5 {[%clk 0:02:47.8]} 10. Qxc5 {[%clk 0:01:29.2]} 10... Nd5 {[%clk 0:02:38.8]}
11. Bxb8 {[%clk 0:01:13.1]} 11... Rxb8 {[%clk 0:02:36.1]} 12. e4 {[%clk
0:00:49.9]} 12... b6 {[%clk 0:02:33.6]} 13. Qd6 {[%clk 0:00:48.4]} 13... Nxc3
{[%clk 0:02:29.2]} 14. Bd3 {[%clk 0:00:43.3]} 14... Rc8 {[%clk 0:02:26.9]} 15.
O-O {[%clk 0:00:40.2]} 15... Qc7 {[%clk 0:02:17.1]} 16. Qb4 {[%clk 0:00:20.9]}
16... a5 {[%clk 0:02:15.8]} 17. Qb2 {[%clk 0:00:17.6]} 17... Na4 {[%clk
0:02:13.2]} 18. Qe2 {[%clk 0:00:17.1]} 18... O-O {[%clk 0:02:12.1]} 19. Ne5
{[%clk 0:00:15.6]} 19... Rfd8 {[%clk 0:02:11]} 20. Qe3 {[%clk 0:00:15.6]} 20...
Be8 {[%clk 0:02:09.7]} 21. Rac1 {[%clk 0:00:15.2]} 21... Qd6 {[%clk 0:02:08.4]}
22. Rxc8 {[%clk 0:00:06]} 22... Rxc8 {[%clk 0:02:07.1]} 23. Nc4 {[%clk
0:00:06.9]} 23... Qd8 {[%clk 0:02:03.4]} 24. Rd1 {[%clk 0:00:04.8]} 24... b5
{[%clk 0:01:59.2]} 25. Ne5 {[%clk 0:00:04.2]} 25... Rc3 {[%clk 0:01:59.8]} 0-1